fUSD/lending_fUSD_20250620
["ID","MTS","AMOUNT","RATE_DAILY","PERIOD"]
[366744182,1750427454010,-939.96,0.0002682,4]
[366744183,1750427454020,-490.0,0.0002682,4]
[366744184,1750427454030,-490.0,0.0002682,4]
[366744185,1750427454040,-490.0,0.0002682,4]
[366744186,1750427454049,-752.560946,0.0002682,7]
[366744187,1750427454059,-752.560946,0.0002682,7]
[366744188,1750427454069,-490.0,0.0002682,4]
[366744189,1750427454079,-606.48,0.0002682,4]
[366744190,1750427454090,-5011.55,0.0002682,4]
[366744191,1750427454101,-490.0,0.0002682,4]
[366744192,1750427454111,-490.0,0.0002682,4]
[366744193,1750427454121,-812.9,0.0002682,4]
[366744194,1750427454131,-618.45,0.0002682,4]
[366744195,1750427454141,-490.0,0.0002682,4]
[366744196,1750427454150,-2811.46,0.0002682,4]
[366744197,1750427454162,-490.0,0.0002682,4]
[366744198,1750427454172,-490.0,0.0002682,4]
[366744199,1750427454182,-179.98,0.0002682,4]
[366744200,1750427454192,-490.0,0.0002682,4]
[366744201,1750427454203,-490.0,0.0002682,4]
[366744202,1750427454213,-490.0,0.0002682,4]
[366744203,1750427454223,-490.0,0.0002682,4]
[366744204,1750427454234,-618.97,0.0002682,4]
[366744205,1750427454246,-509.26,0.0002682,4]
[366744206,1750427454257,-1739.92,0.0002682,4]
[366744207,1750427454266,-1134.35,0.0002682,4]
[366744208,1750427454276,-490.0,0.0002682,4]
[366744209,1750427454286,-490.0,0.0002682,4]
[366744210,1750427454296,-181.877036,0.0002682,7]
[366744211,1750427454307,-181.877036,0.0002682,7]
[366744212,1750427454317,-831.29,0.0002682,4]
[366744213,1750427454326,-490.0,0.0002682,4]
[366744214,1750427454337,-490.0,0.0002682,4]
[366744215,1750427454347,-490.0,0.0002682,4]
[366744216,1750427454358,-490.0,0.0002682,4]
[366744217,1750427454368,-490.0,0.0002682,4]
[366744218,1750427454378,-197.54,0.0002682,4]
[366744219,1750427454388,-348.84,0.0002682,4]
[366744220,1750427454398,-490.0,0.0002682,4]
[366744221,1750427454408,-711.97,0.0002682,4]
[366744222,1750427454418,-756.82,0.0002682,4]
[366744223,1750427454428,-490.0,0.0002682,4]
[366744224,1750427454438,-785.16,0.0002682,4]
[366744225,1750427454448,-262.04,0.0002682,4]
[366744226,1750427454458,-490.0,0.0002682,4]
[366744227,1750427454467,-666.62,0.0002682,4]
[366744228,1750427454477,-490.0,0.0002682,4]
[366744229,1750427454488,-490.0,0.0002682,4]
[366744230,1750427454498,-672.33,0.0002682,4]
[366744231,1750427454508,-390.0,0.0002682,4]
[366744232,1750427454518,-1402.92,0.0002682,4]
[366744233,1750427454528,-256.04,0.0002682,4]
[366744234,1750427454538,-490.0,0.0002682,4]
[366744235,1750427454548,-490.0,0.0002682,4]
[366744236,1750427454558,-507.26,0.0002682,4]
[366744237,1750427454568,-490.0,0.0002682,4]
[366744238,1750427454578,-324.26,0.0002682,4]
[366744239,1750427454588,-490.0,0.0002682,4]
[366744240,1750427454598,-490.0,0.0002682,4]
[366744241,1750427454608,-490.0,0.0002682,4]
[366744242,1750427454618,-456.76,0.0002682,4]
[366744243,1750427454627,-2852.83,0.0002682,4]
[366744244,1750427454637,-608.77,0.0002682,4]
[366744245,1750427454647,-495.51,0.0002682,4]
[366744246,1750427454656,-483.89,0.0002682,4]
[366744247,1750427454666,-490.0,0.0002682,4]
[366744248,1750427454676,-490.0,0.0002682,4]
[366744249,1750427454685,-490.0,0.0002682,4]
[366744250,1750427454695,-490.0,0.0002682,4]
[366744251,1750427454705,-490.0,0.0002682,4]
[366744252,1750427454715,-490.0,0.0002682,4]
[366744253,1750427454725,-789.96,0.0002682,4]
[366744254,1750427454735,-490.0,0.0002682,4]
[366744255,1750427454746,-490.0,0.0002682,4]
[366744256,1750427454756,-904.78,0.0002682,4]
[366744257,1750427454766,-490.0,0.0002682,4]
[366744258,1750427454776,-912.9,0.0002682,4]
[366744259,1750427454787,-490.0,0.0002682,4]
[366744260,1750427454796,-901.29,0.0002682,4]
[366744261,1750427454806,-490.0,0.0002682,4]
[366744262,1750427454816,-490.0,0.0002682,4]
[366744263,1750427454826,-490.0,0.0002682,4]
[366744264,1750427454835,-459.55,0.0002682,4]
[366744265,1750427454845,-490.0,0.0002682,4]
[366744266,1750427454855,-1000.0,0.0002682,2]
[366744267,1750427454865,-2372.33,0.0002682,4]
[366744268,1750427454875,-233.24,0.0002682,4]
[366744269,1750427454885,-490.0,0.0002682,4]
[366744270,1750427454895,-185.37,0.0002682,4]
[366744271,1750427454905,-490.0,0.0002682,4]
[366744272,1750427454916,-516.97,0.0002682,4]
[366744273,1750427454926,-2429.4,0.0002682,4]
[366744274,1750427454935,-192.32,0.0002682,4]
[366744275,1750427454946,-1076.74,0.0002682,4]
[366744276,1750427454956,-490.0,0.0002682,4]
[366744277,1750427454966,-492.43,0.0002682,4]
[366744278,1750427454976,-971.81,0.0002682,4]
[366744279,1750427454986,-490.0,0.0002682,4]
[366744280,1750427454996,-793.7,0.0002682,4]
[366744281,1750427455006,-490.0,0.0002682,4]
[366744282,1750427455016,-557.29,0.0002682,4]
[366744283,1750427455026,-1962.5,0.0002682,4]
[366744284,1750427455036,-331.89,0.0002682,4]
[366744285,1750427455046,-1165.54,0.0002682,4]
[366744286,1750427455055,-1727.64,0.0002682,4]
[366744287,1750427455066,-531.05,0.0002682,4]
[366744288,1750427455076,-490.0,0.00026821,4]
[366744289,1750427455086,-490.0,0.00026821,4]
[366744290,1750427455096,-490.0,0.00026821,4]
[366744291,1750427455106,-490.0,0.00026821,4]
[366744292,1750427455116,-490.0,0.00026821,4]
[366744293,1750427455126,-490.0,0.00026821,4]
[366744294,1750427455135,-536.31,0.00026821,4]
[366744295,1750427455145,-490.0,0.00026821,4]
[366744296,1750427455156,-490.0,0.00026821,4]
[366744297,1750427455168,-490.0,0.00026821,4]
[366744298,1750427455180,-490.0,0.00026821,4]
[366744299,1750427455190,-490.0,0.00026821,4]
[366744300,1750427455201,-490.0,0.00026821,4]
[366744301,1750427455211,-490.0,0.00026821,4]
[366744302,1750427455222,-490.0,0.00026821,4]
[366744303,1750427455233,-549.76,0.00026821,4]
[366744304,1750427455243,-490.0,0.00026821,4]
[366744305,1750427455254,-490.0,0.00026821,4]
[366744306,1750427455264,-490.0,0.00026827,4]
[366744307,1750427455275,-490.0,0.00026827,4]
[366744308,1750427455284,-490.0,0.00026827,4]
[366744309,1750427455294,-490.0,0.00026827,4]
[366744310,1750427455304,-492.92,0.00026827,4]
[366744311,1750427455314,-490.0,0.00026827,4]
[366744312,1750427455325,-151.72289,0.00026829,7]
[366744313,1750427455335,-151.0,0.00026829,7]
[366744314,1750427455345,-170.346206,0.00026829,7]
[366744315,1750427455355,-151.0,0.00026829,7]
[366744316,1750427455365,-170.762707,0.00026829,7]
[366744317,1750427455375,-170.762707,0.00026829,7]
[366744318,1750427455386,-151.0,0.00026829,7]
[366744319,1750427455396,-243.671479,0.00026829,7]
[366744320,1750427455406,-490.0,0.00026829,4]
[366744321,1750427455416,-490.0,0.00026829,4]
[366744322,1750427455427,-447.16,0.00026829,4]
[366744323,1750427455437,-490.0,0.00026829,4]
[366744324,1750427455447,-3720.79,0.00026829,4]
[366744325,1750427455457,-490.0,0.00026829,4]
[366744326,1750427455467,-269.848595,0.0002683,7]
[366744327,1750427455478,-151.0,0.0002683,7]
[366744328,1750427455488,-151.0,0.0002683,7]
[366744329,1750427455498,-151.0,0.0002683,7]
[366744330,1750427455508,-151.0,0.0002683,7]
[366744331,1750427455518,-151.0,0.0002683,7]
[366744332,1750427455528,-490.0,0.0002683,4]
[366744333,1750427455538,-155.671819,0.0002683,7]
[366744334,1750427455548,-394.687699,0.0002683,7]
[366744335,1750427455558,-151.0,0.0002683,7]
[366744336,1750427455568,-151.0,0.0002683,7]
[366744337,1750427455579,-151.0,0.0002683,7]
[366744338,1750427455589,-151.0,0.0002683,7]
[366744339,1750427455599,-199.831116,0.0002683,7]
[366744340,1750427455609,-199.831116,0.0002683,7]
[366744341,1750427455619,-490.0,0.0002683,4]
[366744342,1750427455630,-490.0,0.0002683,4]
[366744343,1750427455640,-592.46,0.0002683,4]
[366744344,1750427455650,-490.0,0.0002683,4]
[366744345,1750427455661,-490.0,0.0002683,4]
[366744346,1750427455671,-490.0,0.0002683,4]
[366744347,1750427455681,-490.0,0.0002683,4]
[366744348,1750427455692,-490.0,0.0002683,4]
[366744349,1750427455702,-210.6078018,0.0002683,4]
[366744350,1750427455750,-279.3921982,0.0002683,4]
[366744351,1750427455760,-490.0,0.0002683,4]
[366744352,1750427455771,-272.79690352,0.0002683,4]
[366744353,1750427455784,-231.26764072,0.0002683,4]
[366744354,1750427455794,-490.0,0.0002683,4]
[366744355,1750427455805,-490.0,0.0002683,4]
[366744356,1750427455816,-490.0,0.0002683,4]
[366744357,1750427455826,-490.0,0.0002683,4]
[366744358,1750427455836,-665.56,0.0002683,4]
[366744359,1750427455846,-490.0,0.0002683,4]
[366744360,1750427455856,-490.0,0.0002683,4]
[366744361,1750427455867,-490.0,0.0002683,4]
[366744362,1750427455877,-598.38,0.0002683,4]
[366744363,1750427455887,-56.34745185,0.0002683,4]
[366744377,1750427619331,179.57,0.00019434,2]
[366744382,1750427661425,201.0,0.00022603,2]
[366744390,1750427681460,205.0,0.00022603,2]
[366744406,1750427815177,151.0,0.00022561,2]
[366744407,1750427833655,151.0,0.00022628,2]
[366744410,1750427869055,350.0,0.00023138,2]
[366744411,1750427893221,350.0,0.00022714,7]
[366744413,1750427908856,151.0,0.00023138,2]
[366744415,1750427908920,168.92774492,0.00023138,2]
[366744422,1750427922094,205.0,0.00022603,2]
[366744423,1750427953581,231.02776733,0.0002249,2]
[366744426,1750428010240,230.0,0.000247,120]
[366744427,1750428012011,201.0,0.00023042,2]
[366744428,1750428041966,205.0,0.00023042,2]
[366744435,1750428070439,80000.0,0.000247,120]
[366744442,1750428093337,671.69,0.000247,120]
[366744445,1750428118858,461.0,0.00022722,2]
[366744446,1750428134388,223.0,0.00023,7]
[366744447,1750428191643,203.0,0.00023042,2]
[366744452,1750428199712,4000.0,0.000232,2]
[366744456,1750428228343,5563.0,0.000212,5]
[366744457,1750428252329,202.0,0.00023042,2]
[366744461,1750428314707,153.93,0.00013699,2]
[366744471,1750428500231,-194.03,0.00025539,120]
[366744477,1750428632550,-201.0,0.0002352,2]
[366744478,1750428632561,-2500.0,0.00023869,7]
[366744479,1750428632572,-345.0,0.0002387,7]
[366744480,1750428632582,-1200.0,0.00023891,2]
[366744481,1750428632591,-300.0,0.00023891,2]
[366744482,1750428632601,-3000.0,0.00023892,2]
[366744483,1750428632612,-3000.0,0.00023892,4]
[366744484,1750428632622,-350.0,0.00023892,2]
[366744485,1750428632632,-300.0,0.00024083,2]
[366744486,1750428632641,-461.0,0.00024084,2]
[366744487,1750428632651,-461.0,0.00024268,7]
[366744488,1750428632661,-556.06185144,0.00024279,2]
[366744489,1750428632670,-168.0,0.00024401,2]
[366744490,1750428632680,-350.0,0.00024409,2]
[366744491,1750428632690,-151.0,0.00024459,2]
[366744492,1750428632699,-1957.856,0.00024459,2]
[366744493,1750428632709,-207.4,0.00024459,2]
[366744494,1750428632719,-300.0,0.00024472,2]
[366744495,1750428632729,-23900.0,0.00024474,2]
[366744496,1750428632739,-390.0166039,0.00024514,2]
[366744498,1750428632749,-990.86,0.00024563,2]
[366744500,1750428632759,-461.0,0.00024584,2]
[366744501,1750428632768,-1711.33,0.00024595,2]
[366744502,1750428632778,-666.0,0.00024661,2]
[366744503,1750428632787,-2751.0,0.00024724,2]
[366744505,1750428632797,-150.0,0.00024747,2]
[366744507,1750428632808,-506.0,0.00024753,2]
[366744509,1750428632817,-14664.83,0.00024754,2]
[366744511,1750428632827,-200.0,0.00024766,7]
[366744513,1750428632836,-201.0,0.00024979,4]
[366744515,1750428632845,-350.0,0.00024991,2]
[366744517,1750428632854,-350.0,0.00025071,2]
[366744519,1750428632865,-461.86,0.00025277,2]
[366744521,1750428632875,-168.0,0.00025304,2]
[366744523,1750428632885,-350.0,0.00025327,7]
[366744525,1750428632896,-350.0,0.00025343,2]
[366744527,1750428632906,-154.0945543,0.00025393,2]
[366744529,1750428632916,-710.90649794,0.000254,13]
[366744531,1750428632926,-710.90649793,0.000254,13]
[366744533,1750428632935,-710.90649793,0.000254,13]
[366744535,1750428632945,-151.09,0.00025424,2]
[366744537,1750428632955,-151.09,0.00025435,2]
[366744539,1750428632965,-151.09,0.00025447,2]
[366744541,1750428632975,-710.90649793,0.00025452,13]
[366744543,1750428632985,-151.09,0.00025459,2]
[366744545,1750428632995,-151.09,0.0002547,2]
[366744547,1750428633005,-151.09,0.00025482,2]
[366744549,1750428633015,-151.09,0.00025493,2]
[366744551,1750428633024,-151.09,0.00025505,2]
[366744553,1750428633035,-151.09,0.00025516,2]
[366744554,1750428633045,-151.09,0.00025528,2]
[366744556,1750428633055,-157.09,0.00025539,2]
[366744558,1750428633065,-200.0,0.00025539,2]
[366744560,1750428633075,-1000.0,0.00025539,2]
[366744562,1750428633085,-250.0,0.00025539,2]
[366744564,1750428633095,-151.09,0.0002554,2]
[366744566,1750428633105,-1000.0,0.00025547,2]
[366744568,1750428633115,-151.09,0.00025551,2]
[366744570,1750428633125,-166.51,0.00025587,2]
[366744572,1750428633135,-659.99,0.00025641,2]
[366744574,1750428633146,-834.11677829,0.00025664,2]
[366744576,1750428633156,-350.0,0.00025759,7]
[366744578,1750428633166,-156.587,0.00025828,2]
[366744580,1750428633176,-215.0738,0.00025828,2]
[366744582,1750428633187,-2492.7356,0.00025897,2]
[366744584,1750428633197,-1986.5623621,0.000259,2]
[366744586,1750428633206,-420.0,0.00025911,2]
[366744588,1750428633216,-710.90649793,0.00025969,14]
[366744590,1750428633225,-423.69312593,0.00025997,4]
[366744592,1750428633236,-490.0,0.00025997,4]
[366744594,1750428633246,-490.0,0.00025997,4]
[366744596,1750428633256,-490.0,0.00025997,4]
[366744598,1750428633265,-490.0,0.00025997,4]
[366744599,1750428633275,-346.45,0.00025997,4]
[366744601,1750428633286,-258.95,0.00025997,4]
[366744603,1750428633295,-490.0,0.00025997,4]
[366744605,1750428633305,-554.64,0.00025997,4]
[366744607,1750428633315,-407.5,0.00025997,4]
[366744609,1750428633324,-490.0,0.00025997,4]
[366744611,1750428633334,-490.0,0.00025997,4]
[366744612,1750428633344,-498.65,0.00025997,4]
[366744613,1750428633354,-490.0,0.00025997,4]
[366744614,1750428633364,-399.28,0.00025997,4]
[366744615,1750428633374,-490.0,0.00025997,4]
[366744616,1750428633384,-490.0,0.00025997,4]
[366744617,1750428633394,-490.0,0.00025997,4]
[366744618,1750428633404,-592.13,0.00025997,4]
[366744619,1750428633414,-1264.37,0.00025997,4]
[366744620,1750428633424,-585.64,0.00025997,4]
[366744621,1750428633434,-490.0,0.00025997,4]
[366744622,1750428633449,-490.0,0.00025997,4]
[366744623,1750428633460,-506.22,0.00025997,4]
[366744624,1750428633470,-490.0,0.00025997,4]
[366744625,1750428633480,-688.57,0.00025997,4]
[366744626,1750428633491,-490.0,0.00025997,4]
[366744627,1750428633501,-490.0,0.00025998,4]
[366744628,1750428633511,-490.0,0.00025998,4]
[366744629,1750428633522,-490.0,0.00025998,4]
[366744630,1750428633532,-490.0,0.00025998,4]
[366744631,1750428633542,-490.0,0.00025998,4]
[366744632,1750428633551,-490.0,0.00025998,4]
[366744634,1750428633562,-490.0,0.00025998,4]
[366744636,1750428633572,-490.0,0.00025998,4]
[366744638,1750428633583,-490.0,0.00025998,4]
[366744640,1750428633593,-490.0,0.00025998,4]
[366744642,1750428633603,-204.96,0.00025998,4]
[366744644,1750428633614,-293.02,0.00025998,4]
[366744646,1750428633624,-297.79,0.00025998,4]
[366744648,1750428633634,-355.54044512,0.00025998,4]
[366744650,1750428633645,-490.0,0.00025998,4]
[366744652,1750428633656,-490.0,0.00025998,4]
[366744654,1750428633666,-1680.0,0.0002603,2]
[366744656,1750428633676,-300.0,0.00026114,2]
[366744658,1750428633686,-559.5663,0.00026171,2]
[366744660,1750428633696,-172.02218341,0.00026181,12]
[366744662,1750428633707,-1114.533,0.00026181,12]
[366744664,1750428633717,-922.28,0.00026236,2]
[366744666,1750428633727,-1973.42813935,0.00026262,5]
[366744668,1750428633738,-1125.56059914,0.0002627,10]
[366744670,1750428633749,-490.0,0.00026271,4]
[366744672,1750428633760,-490.0,0.00026271,4]
[366744674,1750428633771,-490.0,0.00026271,4]
[366744676,1750428633784,-490.0,0.00026271,4]
[366744677,1750428633794,-490.0,0.00026271,4]
[366744679,1750428633805,-490.0,0.00026271,4]
[366744681,1750428633819,-490.0,0.00026271,4]
[366744683,1750428633829,-490.0,0.00026271,4]
[366744685,1750428633840,-746.63,0.00026271,4]
[366744687,1750428633851,-554.64,0.00026271,4]
[366744689,1750428633865,-490.0,0.00026271,4]
[366744691,1750428633875,-490.0,0.00026271,4]
[366744693,1750428633887,-490.0,0.00026271,4]
[366744695,1750428633897,-490.0,0.00026271,4]
[366744697,1750428633908,-490.0,0.00026271,4]
[366744699,1750428633918,-498.65,0.00026271,4]
[366744701,1750428633929,-490.0,0.00026271,4]
[366744703,1750428633939,-490.0,0.00026271,4]
[366744705,1750428633950,-490.0,0.00026271,4]
[366744707,1750428633960,-490.0,0.00026271,4]
[366744709,1750428633972,-490.0,0.00026271,4]
[366744711,1750428633982,-490.0,0.00026271,4]
[366744713,1750428633993,-490.0,0.00026271,4]
[366744715,1750428634003,-1099.19,0.00026271,4]
[366744717,1750428634014,-592.13,0.00026271,4]
[366744719,1750428634024,-490.0,0.00026271,4]
[366744721,1750428634034,-490.0,0.00026271,4]
[366744723,1750428634045,-1264.37,0.00026271,4]
[366744725,1750428634055,-585.64,0.00026271,4]
[366744727,1750428634065,-490.0,0.00026271,4]
[366744728,1750428634076,-490.0,0.00026271,4]
[366744729,1750428634086,-490.0,0.00026271,4]
[366744730,1750428634096,-490.0,0.00026271,4]
[366744731,1750428634107,-506.22,0.00026271,4]
[366744732,1750428634118,-490.0,0.00026271,4]
[366744733,1750428634129,-688.57,0.00026271,4]
[366744734,1750428634140,-490.0,0.00026271,4]
[366744735,1750428634151,-490.0,0.00026271,4]
[366744736,1750428634162,-490.0,0.00026271,4]
[366744737,1750428634173,-490.0,0.00026271,4]
[366744738,1750428634184,-222.63051879,0.00026271,4]
[366744739,1750428634194,-490.0,0.00026271,4]
[366744740,1750428634206,-490.0,0.00026271,4]
[366744741,1750428634216,-490.0,0.00026271,4]
[366744742,1750428634228,-490.0,0.00026271,4]
[366744743,1750428634238,-490.0,0.00026271,4]
[366744744,1750428634248,-490.0,0.00026271,4]
[366744745,1750428634259,-490.0,0.00026271,4]
[366744746,1750428634270,-490.0,0.00026271,4]
[366744747,1750428634280,-490.0,0.00026271,4]
[366744748,1750428634291,-490.0,0.00026271,4]
[366744749,1750428634302,-490.0,0.00026271,4]
[366744750,1750428634313,-782.63,0.00026271,4]
[366744751,1750428634323,-490.0,0.00026271,4]
[366744752,1750428634334,-490.0,0.00026271,4]
[366744753,1750428634344,-327.84,0.00026271,4]
[366744754,1750428634354,-491.43020647,0.00026272,4]
[366744755,1750428634364,-495.20503292,0.00026272,4]
[366744756,1750428634374,-490.0,0.00026272,4]
[366744757,1750428634385,-490.0,0.00026272,4]
[366744758,1750428634396,-490.0,0.00026272,4]
[366744759,1750428634406,-490.0,0.00026272,4]
[366744760,1750428634418,-490.0,0.00026272,4]
[366744761,1750428634429,-490.0,0.00026272,4]
[366744762,1750428634440,-490.0,0.00026272,4]
[366744763,1750428634451,-490.0,0.00026272,4]
[366744764,1750428634462,-490.0,0.00026272,4]
[366744765,1750428634472,-490.0,0.00026272,4]
[366744766,1750428634483,-490.0,0.00026272,4]
[366744767,1750428634494,-490.0,0.00026272,4]
[366744768,1750428634504,-490.0,0.00026272,4]
[366744769,1750428634515,-490.0,0.00026272,4]
[366744770,1750428634526,-585.64,0.00026281,4]
[366744771,1750428634536,-1500.0,0.00026281,2]
[366744772,1750428634548,-300.0,0.00026281,2]
[366744773,1750428634559,-413.49,0.000263,2]
[366744774,1750428634570,-1769.520704,0.0002642,2]
[366744775,1750428634580,-500.0,0.0002642,2]
[366744776,1750428634590,-500.0,0.0002642,2]
[366744777,1750428634601,-500.0,0.0002642,2]
[366744778,1750428634612,-500.0,0.0002642,2]
[366744779,1750428634622,-500.0,0.0002642,2]
[366744780,1750428634633,-500.0,0.0002642,2]
[366744781,1750428634643,-500.0,0.0002642,2]
[366744782,1750428634654,-500.0,0.0002642,2]
[366744783,1750428634664,-500.0,0.0002642,2]
[366744784,1750428634674,-500.0,0.0002642,2]
[366744785,1750428634684,-500.0,0.0002642,2]
[366744786,1750428634694,-500.0,0.0002642,2]
[366744787,1750428634704,-500.0,0.0002642,2]
[366744788,1750428634714,-500.0,0.0002642,2]
[366744789,1750428634724,-500.0,0.0002642,2]
[366744790,1750428634734,-500.0,0.0002642,2]
[366744791,1750428634744,-500.0,0.0002642,2]
[366744792,1750428634753,-513.0,0.0002642,2]
[366744793,1750428634763,-500.0,0.0002642,2]
[366744794,1750428634773,-500.0,0.0002642,2]
[366744795,1750428634783,-500.0,0.0002642,2]
[366744796,1750428634793,-500.0,0.0002642,2]
[366744797,1750428634803,-500.0,0.0002642,2]
[366744798,1750428634816,-500.0,0.0002642,2]
[366744799,1750428634826,-500.0,0.0002642,2]
[366744800,1750428634837,-500.0,0.0002642,2]
[366744801,1750428634847,-500.0,0.0002642,2]
[366744802,1750428634857,-500.0,0.0002642,2]
[366744803,1750428634868,-500.0,0.0002642,2]
[366744804,1750428634878,-500.0,0.0002642,2]
[366744805,1750428634889,-500.0,0.0002642,2]
[366744806,1750428634899,-500.0,0.0002642,2]
[366744807,1750428634910,-500.0,0.0002642,2]
[366744808,1750428634921,-500.0,0.0002642,2]
[366744809,1750428634932,-500.0,0.0002642,2]
[366744810,1750428634943,-500.0,0.0002642,2]
[366744811,1750428634954,-500.0,0.0002642,2]
[366744812,1750428634964,-500.0,0.0002642,2]
[366744813,1750428634975,-500.0,0.0002642,2]
[366744814,1750428634985,-500.0,0.0002642,2]
[366744815,1750428634995,-500.0,0.0002642,2]
[366744816,1750428635005,-500.0,0.0002642,2]
[366744817,1750428635016,-500.0,0.0002642,2]
[366744818,1750428635026,-500.0,0.0002642,2]
[366744819,1750428635038,-500.0,0.0002642,2]
[366744820,1750428635048,-500.0,0.0002642,2]
[366744821,1750428635059,-500.0,0.0002642,2]
[366744822,1750428635069,-500.0,0.0002642,2]
[366744823,1750428635079,-500.0,0.0002642,2]
[366744824,1750428635089,-500.0,0.0002642,2]
[366744825,1750428635100,-500.0,0.0002642,2]
[366744826,1750428635110,-500.0,0.0002642,2]
[366744827,1750428635121,-500.0,0.0002642,2]
[366744828,1750428635131,-879.0,0.0002642,2]
[366744829,1750428635142,-201.0,0.00026438,6]
[366744830,1750428635153,-557.07546544,0.00026444,10]
[366744831,1750428635163,-176.35465666,0.00026455,2]
[366744832,1750428635174,-348.0,0.00026477,2]
[366744833,1750428635184,-710.90649793,0.00026486,15]
[366744834,1750428635194,-281.24,0.00026534,2]
[366744835,1750428635206,-490.0,0.00026543,4]
[366744836,1750428635218,-333.18509199,0.00026543,4]
[366744837,1750428635228,-490.0,0.00026543,4]
[366744838,1750428635238,-490.0,0.00026543,4]
[366744839,1750428635249,-630.68,0.00026543,4]
[366744840,1750428635259,-201.72,0.00026543,4]
[366744841,1750428635269,-588.71,0.00026543,4]
[366744842,1750428635279,-490.0,0.00026543,4]
[366744843,1750428635290,-1169.1,0.00026543,4]
[366744844,1750428635300,-490.0,0.00026543,4]
[366744845,1750428635310,-490.0,0.00026543,4]
[366744846,1750428635321,-507.31,0.00026543,4]
[366744847,1750428635332,-490.0,0.00026543,4]
[366744848,1750428635342,-490.0,0.00026543,4]
[366744849,1750428635353,-490.0,0.00026543,4]
[366744850,1750428635364,-490.0,0.00026543,4]
[366744851,1750428635374,-490.0,0.00026543,4]
[366744852,1750428635385,-753.98,0.00026543,4]
[366744853,1750428635396,-490.0,0.00026543,4]
[366744854,1750428635407,-658.3,0.00026543,4]
[366744855,1750428635419,-490.0,0.00026543,4]
[366744856,1750428635429,-490.0,0.00026543,4]
[366744857,1750428635439,-760.75,0.00026543,4]
[366744858,1750428635450,-1000.0,0.00026543,2]
[366744859,1750428635461,-301.70259316,0.00026543,4]
[366744860,1750428635477,-188.29740684,0.00026543,4]
[366744861,1750428635488,-490.0,0.00026543,4]
[366744862,1750428635498,-661.42,0.00026543,4]
[366744863,1750428635508,-490.0,0.00026543,4]
[366744864,1750428635519,-490.0,0.00026543,4]
[366744865,1750428635530,-971.29,0.00026543,4]
[366744866,1750428635540,-490.0,0.00026543,4]
[366744867,1750428635551,-490.0,0.00026543,4]
[366744868,1750428635561,-490.0,0.00026543,4]
[366744869,1750428635572,-490.0,0.00026543,4]
[366744870,1750428635582,-490.0,0.00026543,4]
[366744871,1750428635592,-490.0,0.00026543,2]
[366744872,1750428635603,-740.42,0.00026543,4]